bitfinex-derivatives/quotes_ETHF0:USTF0_20241231
["timestamp","ask_amount","ask_price","bid_price","bid_amount"]
[1735633981783,8.89238973,3408.3,3407.7,0.29399]
[1735633982080,8.89238973,3408.3,3407.9,0.29397]
[1735633982284,8.89238973,3408.3,3407.5,0.29401]
[1735633982586,8.89238973,3408.3,3407.4,3.1885154]
[1735633982880,3.2078,3408.3,3407.4,0.29402]
[1735633983079,3.2078,3408.7,3407.9,3.1885154]
[1735633983286,3.2078,3408.7,3408.6,0.29392]
[1735633983582,5.68458973,3409.1,3408.1,3.2078]
[1735633983783,5.68458973,3409.1,3409.0,0.29388]
[1735633983978,3.2078,3409.3,3409.2,0.29386]
[1735633984175,3.2078,3409.3,3409.0,41.09388]
[1735633984379,3.2078,3409.3,3409.0,0.29388]
[1735633984785,3.2078,3409.3,3408.0,2.1643]
[1735633984786,3.2078,3409.3,3408.0,5.3721]
[1735633984983,3.2078,3408.8,3408.0,5.3721]
[1735633985180,0.29391,3408.7,3408.0,3.50177]
[1735633985376,3.2078,3408.4,3408.0,0.29397]
[1735633985576,3.2078,3408.4,3407.7,0.294]
[1735633985782,3.2078,3408.4,3407.6,3.2078]
[1735633986086,3.50179,3407.9,3407.0,0.29406]
[1735633986285,3.2078,3407.9,3406.9,3.1885154]
[1735633986579,3.2078,3407.9,3407.8,0.29399]
[1735633986783,3.2078,3407.9,3407.0,3.2078]
[1735633987182,3.50179,3407.9,3407.3,0.29403]
[1735633987385,0.29397,3408.0,3407.4,0.29401]
[1735633987586,0.29398,3407.9,3407.3,0.29403]
[1735633987782,3.2078,3407.6,3407.0,0.29406]
[1735633987979,3.2078,3407.6,3406.4,6.3963154]
[1735633987980,3.2078,3408.0,3407.1,40.8]
[1735633988381,3.2078,3408.0,3407.2,0.29404]
[1735633988577,3.2078,3407.3,3406.4,11.3963154]
[1735633988776,3.50183,3407.3,3406.7,0.29408]
[1735633988985,3.2078,3407.3,3406.9,0.29406]
[1735633989183,0.29405,3407.1,3406.6,0.29409]
[1735633989384,3.2078,3407.3,3406.5,40.8]
[1735633989585,3.2078,3407.3,3406.4,6.3963154]
[1735633989586,0.29407,3406.9,3406.4,3.2078]
[1735633989782,0.4705,3407.2,3406.4,3.2078]
[1735633989985,0.2941,3406.6,3406.4,3.2078]
[1735633990184,0.2941,3406.5,3406.4,3.2078]
[1735633990383,5.9234,3407.2,3406.4,3.2078]
[1735633990588,0.29409,3406.6,3406.4,3.2078]
[1735633990790,3.2078,3406.6,3405.9,3.2078]
[1735633990986,3.2078,3406.6,3405.7,0.29416]
[1735633991192,3.2078,3406.2,3405.9,0.29415]
[1735633991391,0.2941,3406.6,3406.0,0.29414]
[1735633991591,3.2078,3406.8,3405.8,0.29416]
[1735633991789,3.2078,3406.4,3405.7,0.29417]
[1735633992090,0.29415,3405.9,3405.4,3.2078]
[1735633992292,0.29416,3405.8,3405.4,3.2078]
[1735633992496,3.2078,3406.0,3404.9,6.3963154]
[1735633992790,0.29418,3405.6,3404.9,43.9885154]
[1735633993098,3.50199,3405.6,3404.9,0.29423]
[1735633993392,3.2078,3406.5,3405.5,3.2078]
[1735633993591,3.1885154,3408.3,3406.7,0.29408]
[1735633993592,3.2078,3407.2,3406.7,0.29408]
[1735633993888,3.2078,3407.2,3406.4,40.8]
[1735633993889,3.2078,3407.2,3406.6,0.29409]
[1735633994092,3.2078,3407.2,3406.4,40.8]
[1735633995190,4.1303,3407.3,3406.4,40.8]
[1735633995390,4.1303,3407.3,3406.9,0.29407]
[1735633995589,0.9225,3407.3,3406.9,0.29406]
[1735633996090,4.1303,3407.3,3406.8,0.29407]
[1735633996790,0.29404,3407.2,3406.6,0.29409]
[1735633996985,4.1303,3407.3,3406.4,40.8]
[1735633997192,0.29408,3406.8,3406.2,0.29413]
[1735633997588,3.50191,3406.5,3405.9,0.29415]
[1735633997788,3.2078,3406.5,3405.7,3.2078]
[1735633997983,3.2078,3406.1,3406.0,0.29415]
[1735633998190,5.29411,3406.5,3405.9,0.29415]
[1735633998395,0.29411,3406.4,3405.5,3.2078]
[1735633998591,5.0,3406.5,3405.1,3.2078]
[1735633998787,0.29411,3406.4,3405.8,0.29416]
[1735633998992,3.2078,3406.2,3405.1,3.2078]
[1735633999198,0.29418,3405.7,3405.1,3.50202]
[1735633999389,3.2078,3405.7,3405.1,3.2078]
[1735633999592,0.29419,3405.6,3404.9,0.29423]
[1735633999791,3.2078,3405.7,3404.7,40.8]
[1735633999992,3.50198,3405.7,3405.0,0.29423]
[1735634000195,3.2078,3405.7,3404.7,40.8]
[1735634000796,3.2078,3405.7,3405.5,0.29419]
[1735634001196,3.2078,3405.7,3404.9,3.1885154]
[1735634001498,3.2078,3405.7,3405.3,0.29421]
[1735634001697,3.2078,3405.7,3404.9,3.1885154]
[1735634002000,1.18524,3406.1,3405.5,0.29418]
[1735634002196,0.4324,3406.1,3405.0,3.2078]
[1735634002494,0.4324,3406.1,3405.6,0.29418]
[1735634002495,0.72654,3406.1,3405.6,0.29418]
[1735634002693,0.4324,3406.1,3405.6,0.29418]
[1735634002893,0.4324,3406.1,3405.3,0.2942]
[1735634003096,3.2078,3405.8,3405.5,0.29419]
[1735634003306,3.2078,3405.8,3405.0,3.2078]
[1735634003795,3.2078,3405.3,3404.5,3.2078]
[1735634004200,0.29424,3404.9,3404.4,0.29428]
[1735634004394,0.29424,3404.9,3404.4,0.29429]
[1735634004699,3.2078,3405.3,3404.1,3.2078]
[1735634004898,0.2943,3404.3,3403.9,0.29432]
[1735634005201,3.2078,3404.9,3403.9,40.8]
[1735634005506,5.0,3405.3,3403.9,40.8]
[1735634005507,3.2078,3404.4,3403.9,40.8]
[1735634005698,3.2078,3404.4,3403.6,3.2078]
[1735634006001,3.2078,3404.4,3403.4,3.1885154]
[1735634006200,3.2078,3404.3,3403.4,3.1885154]
[1735634006403,1.696,3404.8,3404.3,0.29429]
[1735634006404,3.2078,3404.7,3404.3,0.29429]
[1735634006607,3.2078,3404.7,3404.6,0.29427]
[1735634006907,0.4358,3405.6,3404.4,6.3963154]
[1735634006908,3.2078,3405.6,3404.4,6.3963154]
[1735634007201,3.2078,3405.6,3405.1,0.29422]
[1735634007202,3.50198,3405.6,3405.1,0.29422]
[1735634007900,3.2078,3405.6,3404.5,40.8]
[1735634008112,3.2078,3405.2,3404.5,40.8]
[1735634008701,0.9041,3405.7,3404.8,3.2078]
[1735634008903,0.29421,3405.6,3405.1,0.29424]
[1735634009307,3.2078,3405.5,3405.1,0.29424]
[1735634009605,3.2078,3405.5,3404.1,3.2078]
[1735634009805,3.2078,3404.9,3404.2,0.29432]
[1735634009999,0.29427,3404.8,3404.3,0.29431]
[1735634010201,0.29429,3404.7,3404.1,0.29433]
[1735634010496,3.2078,3404.9,3403.9,3.1885154]
[1735634010700,0.29428,3404.8,3403.9,3.1885154]
[1735634010904,3.2078,3404.9,3403.9,6.3963154]
[1735634011200,3.2078,3404.7,3404.5,0.29429]
[1735634011405,3.2078,3404.7,3403.9,6.3963154]
[1735634011701,0.29421,3405.5,3405.0,0.29425]
[1735634012101,3.2078,3405.3,3404.4,0.29431]
[1735634012298,3.2078,3405.3,3405.2,0.29424]
[1735634012499,3.2078,3405.3,3404.7,3.2078]
[1735634012707,3.2078,3404.8,3403.6,0.23888599]
[1735634013009,3.2078,3405.3,3404.0,3.2078]
[1735634013206,8.2078,3405.3,3404.0,3.2078]
[1735634013410,0.29424,3405.2,3404.3,0.29431]
[1735634013811,3.2078,3405.3,3404.0,3.2078]
[1735634014107,0.29427,3404.9,3404.4,0.2943]
[1735634014311,3.2078,3405.3,3404.3,0.29431]
[1735634014698,3.2078,3405.3,3404.4,0.2943]
[1735634014907,3.2078,3405.3,3404.0,3.2078]
[1735634015100,0.9749,3405.6,3404.0,3.2078]
[1735634015101,3.2078,3404.9,3404.0,3.2078]
[1735634015307,0.2943,3404.5,3404.0,3.50214]
[1735634015504,0.2943,3404.5,3403.1,3.1885154]
[1735634015505,3.2078,3404.3,3403.5,3.2078]
[1735634015905,3.2078,3404.3,3403.9,0.29434]
[1735634016103,3.2078,3404.7,3404.3,0.29431]
[1735634016301,3.2078,3404.7,3403.9,3.2078]
[1735634016502,3.2078,3404.7,3404.3,0.29431]
[1735634016709,3.2078,3404.7,3403.9,3.2078]
[1735634017615,3.2078,3404.7,3404.6,0.29429]
[1735634017801,3.2078,3405.3,3405.0,0.29425]
[1735634018007,3.2078,3405.3,3404.5,2.82274452]
[1735634018309,3.2078,3405.3,3404.9,0.29426]
[1735634018509,3.2078,3405.3,3405.0,0.29425]
[1735634018708,3.2078,3405.3,3404.9,0.29426]
[1735634019107,3.2078,3405.3,3404.3,3.2078]
[1735634019108,0.29425,3405.1,3404.6,0.29428]
[1735634019301,0.29424,3405.2,3404.7,0.29427]
[1735634019717,0.29424,3405.2,3404.7,0.29428]
[1735634020313,3.2078,3405.3,3404.3,3.2078]
[1735634020817,0.9749,3405.6,3404.2,0.4903]
[1735634020818,3.2078,3404.7,3404.2,0.4903]
[1735634021008,3.2078,3404.7,3404.3,0.29431]
[1735634021308,0.2943,3404.5,3404.1,0.29433]
[1735634021513,3.2078,3404.7,3403.9,3.2078]
[1735634021721,3.2078,3404.7,3404.5,0.29429]
[1735634021916,3.2078,3404.7,3403.9,3.2078]
[1735634022116,3.50208,3404.7,3404.3,0.29431]
[1735634022307,3.20559425,3404.7,3404.5,0.29429]
[1735634022714,3.20559425,3404.7,3403.9,3.2078]
[1735634023011,3.20559425,3404.7,3404.4,0.2943]
[1735634023219,3.20559425,3404.7,3403.9,3.2078]
[1735634023431,3.2078,3405.1,3404.9,0.29426]
[1735634023727,3.2078,3405.1,3405.0,0.29425]
[1735634023931,4.1827,3405.6,3404.8,3.2078]
[1735634024124,4.47691,3405.6,3404.9,40.8]
[1735634024421,4.1827,3405.6,3404.9,40.8]
[1735634024833,0.29422,3405.5,3404.9,40.8]
[1735634025127,0.29422,3405.5,3405.1,0.29425]
[1735634025317,3.2078,3405.2,3404.5,2.82274452]
[1735634025517,3.50205,3405.2,3404.8,0.29428]
[1735634025727,3.50205,3405.2,3404.8,0.29427]
[1735634025728,3.50204,3405.2,3404.8,0.29427]
[1735634026024,0.29425,3405.1,3404.7,0.29428]
[1735634026225,3.2078,3404.8,3404.7,0.29428]
[1735634026820,3.2078,3404.8,3404.5,2.82274452]
[1735634026821,3.2078,3405.4,3404.5,2.82274452]
[1735634027028,3.2078,3405.4,3405.1,0.29425]
[1735634027231,3.2078,3405.4,3405.3,0.29424]
[1735634027424,0.9749,3405.6,3405.3,0.29424]
[1735634027620,3.2078,3405.4,3405.3,0.29424]
[1735634027820,3.2078,3405.4,3405.3,3.11698452]
[1735634028029,3.2078,3406.3,3405.3,5.0]
[1735634028224,3.2078,3406.3,3405.6,2.82274452]
[1735634028522,0.29416,3406.2,3405.7,40.8]
[1735634028725,3.2078,3406.3,3405.7,40.8]
[1735634028924,3.2078,3406.3,3405.4,0.4777]
[1735634029126,3.2078,3406.3,3405.4,3.6855]
[1735634029322,3.2078,3406.3,3406.0,0.29417]
[1735634029528,3.2078,3406.3,3405.5,40.8]
[1735634029719,3.2078,3406.3,3405.4,3.2078]
[1735634030021,0.29419,3405.8,3405.3,0.29423]
[1735634030228,3.2078,3405.9,3405.0,3.2078]
[1735634030421,0.29421,3405.6,3405.0,3.2078]
[1735634030617,3.2078,3405.5,3404.8,2.82274452]
[1735634030816,3.2078,3405.5,3404.2,0.23780756]
[1735634030817,3.2078,3405.0,3404.4,2.82274452]
[1735634031019,0.9827,3405.8,3404.6,3.6817]
[1735634031224,3.50203,3405.4,3404.6,3.6817]
[1735634031430,3.2078,3405.4,3404.6,3.6817]
[1735634031624,3.50203,3405.4,3404.9,0.29426]
[1735634031826,0.29425,3405.1,3404.4,2.82274452]
[1735634032130,0.9827,3405.8,3404.4,2.82274452]
[1735634032131,3.2078,3404.9,3404.4,2.82274452]
[1735634032425,3.2078,3404.9,3404.7,0.29429]
[1735634032724,0.29428,3404.8,3404.4,2.82274452]
[1735634032926,3.2078,3404.9,3404.3,0.29432]
[1735634033129,0.29429,3404.7,3404.3,0.29432]
[1735634033431,0.29428,3404.8,3404.1,0.29434]
[1735634033632,3.2078,3404.9,3404.5,0.2943]
[1735634033932,3.50208,3404.9,3404.5,0.2943]
[1735634034130,3.2078,3404.9,3404.0,43.62274452]
[1735634034325,0.29428,3404.8,3404.4,0.29431]
[1735634034524,3.2078,3404.9,3404.0,43.62274452]
[1735634035025,3.50207,3404.9,3404.5,0.2943]
[1735634035225,0.29429,3404.7,3404.3,0.29432]
[1735634035827,3.2078,3404.5,3404.4,0.29431]
[1735634036021,3.2078,3404.5,3404.0,2.82274452]
[1735634036434,3.5021,3404.6,3404.2,0.29433]
[1735634036633,0.29431,3404.5,3404.1,0.29433]
[1735634036929,3.2078,3404.6,3404.1,0.29434]
[1735634037331,3.2078,3404.6,3404.0,2.82274452]
[1735634037534,0.29433,3404.3,3404.0,2.82274452]
[1735634037840,0.29433,3404.2,3403.8,3.50216]
[1735634038137,0.29433,3404.2,3403.6,2.82274452]
[1735634038138,0.29434,3404.1,3403.6,0.29438]
[1735634038437,3.2078,3403.8,3403.6,0.29438]
[1735634039031,0.29438,3403.7,3403.2,0.29441]
[1735634039228,0.4904,3404.4,3402.9,0.29444]
[1735634039229,3.2078,3403.3,3402.9,0.29444]
[1735634039634,3.2078,3403.3,3403.1,0.29442]
[1735634040026,3.2078,3403.3,3403.2,0.29442]
[1735634040229,3.2078,3403.3,3402.5,3.2078]
[1735634040430,0.29439,3403.5,3403.1,0.29443]
[1735634040638,3.2078,3403.8,3403.7,0.29437]
[1735634040830,3.2078,3403.8,3403.2,2.82274452]
[1735634041031,3.2078,3403.8,3402.9,3.2078]
[1735634041330,5.97896973,3403.7,3403.2,0.29441]
[1735634041534,5.97896973,3403.7,3402.9,3.2078]
[1735634041535,5.68458973,3403.7,3402.9,3.2078]
[1735634041836,5.68458973,3403.7,3403.3,0.2944]
[1735634042032,5.97896973,3403.7,3403.2,0.29441]
[1735634042232,0.29438,3403.7,3403.2,0.29441]
[1735634042540,0.29442,3403.2,3402.6,0.29447]
[1735634042829,3.5022,3403.4,3402.8,0.29445]
[1735634043035,3.2078,3403.4,3402.8,0.29445]
[1735634043235,3.2078,3403.4,3402.5,3.2078]
[1735634043630,0.29441,3403.3,3402.7,0.29446]
[1735634043933,3.2078,3403.4,3402.4,2.82274452]
[1735634044133,0.29441,3403.3,3402.8,0.29444]
[1735634044435,3.2078,3403.0,3402.7,0.29446]
[1735634044635,3.2078,3403.0,3401.6,3.2078]
[1735634044830,6.03054452,3402.4,3401.6,0.29455]
[1735634045035,3.2078,3402.0,3401.2,3.2078]
[1735634045334,3.2078,3402.0,3400.9,1.0011]
[1735634045335,3.2078,3402.2,3400.9,1.0011]
[1735634045637,3.2078,3402.2,3401.5,2.82274452]
[1735634045835,3.2078,3402.8,3402.2,0.2945]
[1735634046042,3.2078,3402.8,3401.6,3.2078]
[1735634046531,3.2078,3402.4,3402.3,0.2945]
[1735634046840,3.50229,3402.4,3401.8,0.29453]
[1735634047036,3.2078,3402.0,3401.2,3.2078]
[1735634047233,3.2078,3401.5,3400.8,3.2078]
[1735634047433,3.2078,3401.5,3401.3,0.29457]
[1735634047930,3.2078,3402.5,3401.2,6.03054452]
[1735634048137,3.2078,3402.5,3401.3,0.29458]
[1735634048334,3.2078,3402.5,3401.2,6.03054452]
[1735634048534,0.29449,3402.4,3401.2,6.03054452]
[1735634048727,3.50232,3402.1,3401.3,0.29458]
[1735634048931,3.2078,3402.1,3400.8,7.66154452]
[1735634049132,3.2078,3401.6,3400.8,7.66154452]
[1735634049339,3.2078,3401.6,3400.8,6.03054452]
[1735634049634,3.2078,3401.6,3400.8,3.2078]
[1735634049840,0.29458,3401.4,3400.8,3.50242]
[1735634050040,0.29458,3401.4,3400.9,0.29461]
[1735634050236,0.29457,3401.4,3400.8,3.50242]
[1735634050442,0.29457,3401.4,3400.8,0.29462]
[1735634050443,3.2078,3401.1,3400.8,0.29462]
[1735634050637,3.2078,3401.1,3400.7,40.8]
[1735634050841,0.48,3401.5,3400.4,3.34524452]
[1735634051045,4.53492,3402.0,3401.4,0.29457]
[1735634051247,4.53492,3402.0,3401.5,0.29456]
[1735634051537,3.2078,3401.6,3400.8,2.82274452]
[1735634051940,3.50236,3401.6,3401.0,0.2946]
[1735634052134,3.2078,3401.6,3400.7,3.2078]
[1735634052337,0.29456,3401.5,3400.7,3.2078]
[1735634052538,0.29456,3401.5,3400.4,3.34524452]
[1735634052539,0.2946,3401.2,3400.6,0.29463]
[1735634052743,0.29461,3401.1,3400.4,0.5225]
[1735634052941,0.29461,3401.1,3400.6,0.29463]
[1735634052942,0.2946,3401.1,3400.6,0.29463]
[1735634053149,3.2078,3401.2,3400.3,3.2078]
[1735634053345,8.2078,3401.2,3400.3,3.2078]
[1735634053536,0.29464,3400.7,3400.3,3.2078]
[1735634053840,0.29462,3400.8,3400.3,3.50247]
[1735634054045,8.2078,3401.2,3399.6,3.82734452]
[1735634054046,3.50245,3400.6,3400.1,0.29468]
[1735634054343,3.2078,3400.6,3399.8,3.2078]
[1735634054543,3.2078,3400.2,3399.6,3.31864452]
[1735634054746,3.2078,3400.2,3399.6,0.4959]
[1735634055047,3.2078,3400.2,3399.9,0.2947]
[1735634055348,3.2078,3400.2,3399.6,0.29472]
[1735634055545,3.2078,3400.2,3399.2,2.82274452]
[1735634055546,3.2078,3399.8,3399.0,0.67835631]
[1735634056144,3.2078,3399.8,3399.7,0.29472]
[1735634056642,3.2078,3399.8,3399.0,0.67835631]
[1735634057447,3.2078,3399.8,3399.2,0.29475]
[1735634057648,3.50251,3399.8,3399.1,0.29476]
[1735634057848,3.50251,3399.8,3399.0,0.67835631]
[1735634058046,8.2078,3399.8,3399.0,0.67835631]
[1735634058241,3.2078,3399.2,3399.0,0.67835631]
[1735634058449,3.2078,3399.8,3399.0,0.67835631]
[1735634058943,3.2078,3399.4,3398.4,3.2078]
[1735634059141,1.524,3399.3,3398.4,3.2078]
[1735634059350,4.29546452,3401.7,3398.4,3.2078]
[1735634059351,3.2078,3399.9,3398.5,2.82274452]
[1735634059552,3.2078,3399.9,3398.9,2.82274452]
[1735634059737,3.2078,3399.9,3399.0,0.5015]
[1735634059942,3.2078,3399.5,3398.8,3.2078]
[1735634060347,3.2078,3399.5,3398.2,3.7093]
[1735634060348,3.2078,3399.1,3398.2,3.7093]
[1735634060739,0.29479,3398.8,3398.0,0.29485]
[1735634060939,3.2078,3398.7,3397.8,3.2078]
[1735634061441,4.45574452,3399.0,3397.4,3.719]
[1735634061442,3.2078,3398.3,3397.4,3.719]
[1735634061639,3.2078,3397.9,3397.4,0.5112]
[1735634062149,0.4736,3398.5,3397.9,0.29486]
[1735634062349,0.4736,3398.5,3398.0,0.29485]
[1735634062543,0.4736,3398.5,3398.1,0.29484]
[1735634062743,0.4736,3398.5,3397.5,7.82274452]
[1735634062946,0.4736,3398.5,3397.5,2.82274452]
[1735634063150,0.4736,3398.5,3398.0,0.29485]
[1735634063346,3.2078,3398.7,3397.9,3.2078]
[1735634063547,0.4736,3399.3,3398.7,0.29479]
[1735634063744,0.4736,3399.3,3398.4,2.82274452]
[1735634064050,0.4736,3399.3,3398.3,3.2078]
[1735634064247,0.4736,3399.3,3398.8,40.8]
[1735634064553,3.2078,3399.1,3398.8,40.8]
[1735634064848,3.2078,3399.1,3398.0,2.82274452]
[1735634065042,3.2078,3398.7,3398.0,0.29485]
[1735634065238,0.29482,3398.5,3397.9,3.2078]
[1735634065449,3.2078,3398.7,3397.9,3.2078]
[1735634065641,3.2078,3398.7,3398.1,0.29484]
[1735634065944,3.2078,3398.7,3396.6,3.2078]
[1735634065945,3.2078,3398.2,3396.6,3.2078]
[1735634066151,3.2078,3397.8,3397.0,3.2078]
[1735634066344,3.2078,3397.8,3397.3,0.29491]
[1735634066543,3.2078,3397.8,3397.1,0.29492]
[1735634066847,3.2078,3397.8,3396.5,2.82274452]
[1735634066848,3.2078,3397.8,3397.0,3.2078]
[1735634067152,3.2078,3397.8,3397.2,0.29492]
[1735634067448,3.2078,3397.4,3397.0,0.29493]
[1735634067653,3.2078,3397.4,3396.5,11.03054452]
[1735634068043,3.2078,3397.4,3397.3,3.11765452]
[1735634068248,3.2078,3398.6,3397.3,3.2078]
[1735634068451,3.2078,3398.6,3398.4,0.2948]
[1735634068747,3.2078,3398.6,3397.8,3.2078]
[1735634069053,3.2078,3398.6,3398.3,0.29482]
[1735634069245,3.2078,3398.6,3397.8,8.2078]
[1735634069553,3.2078,3398.6,3397.8,3.2078]
[1735634069945,3.2078,3398.6,3398.2,0.29482]
[1735634070248,3.2078,3398.6,3397.8,3.2078]
[1735634070452,0.4552,3399.5,3399.0,0.29475]
[1735634070652,0.4552,3399.5,3398.6,3.2078]
[1735634070949,0.29476,3399.0,3398.4,0.29481]
[1735634071143,3.2078,3398.8,3397.8,3.2078]
[1735634071343,3.2078,3398.4,3397.8,3.2078]
[1735634071544,3.2078,3398.8,3398.3,0.29482]
[1735634071945,3.2078,3398.8,3397.8,3.2078]
[1735634072152,0.4552,3399.5,3398.9,0.29477]
[1735634072153,3.2078,3399.3,3398.9,0.29477]
[1735634072348,0.4552,3399.5,3399.1,0.29475]
[1735634072546,3.6569,3400.1,3398.6,3.2078]
[1735634072747,3.2078,3399.7,3399.4,0.29472]
[1735634073052,3.2078,3399.7,3399.5,0.29472]
[1735634073258,3.2078,3399.7,3398.8,0.29478]
[1735634073554,0.4491,3400.1,3398.7,5.4741]
[1735634073555,3.2078,3399.3,3398.9,0.29476]
[1735634073744,3.2078,3399.7,3399.2,0.29473]
[1735634074052,3.2078,3399.7,3398.7,0.4741]
[1735634074254,3.2078,3399.3,3398.6,3.2078]
[1735634074452,3.50253,3399.3,3398.7,0.29478]
[1735634074655,0.29475,3399.1,3398.5,0.29479]
[1735634074950,3.2078,3399.3,3398.3,0.29481]
[1735634075250,1.3712,3399.2,3397.9,0.4741]
[1735634075459,3.2078,3399.4,3398.2,3.2078]
[1735634075648,0.29473,3399.3,3398.7,0.29477]
[1735634075848,3.2078,3399.4,3398.3,41.2429]
[1735634076048,0.29474,3399.2,3398.6,0.29478]
[1735634076352,3.2078,3399.0,3397.8,3.2078]
[1735634076546,3.2078,3398.6,3397.4,4.1188]
[1735634076954,0.2948,3398.5,3397.4,4.1188]
[1735634077150,3.2078,3398.6,3397.9,0.29484]
[1735634077348,3.2078,3398.6,3397.4,4.1188]
[1735634077548,0.2948,3398.5,3398.0,0.29484]
[1735634078054,3.50259,3398.6,3398.0,0.29483]
[1735634078255,0.2948,3398.5,3398.0,0.29483]
[1735634078547,3.2078,3398.6,3397.5,0.29488]
[1735634078548,0.29483,3398.1,3397.5,0.29488]
[1735634078753,3.50262,3398.2,3397.6,0.29487]
[1735634078947,3.2078,3398.2,3397.4,3.94558]
[1735634079153,0.29483,3398.1,3397.4,3.6507]
[1735634079363,3.2078,3398.2,3397.4,3.6507]
[1735634079364,0.29484,3398.0,3397.4,3.6507]
[1735634079552,0.29486,3397.8,3397.4,3.2078]
[1735634079752,0.29486,3397.8,3396.5,3.2078]
[1735634079753,3.2078,3397.8,3396.5,3.2078]
[1735634079949,0.29488,3397.5,3396.9,0.29493]
[1735634080156,3.2078,3397.8,3397.1,0.29491]
[1735634080356,3.2078,3397.8,3396.0,1.658]
[1735634080357,3.2078,3397.4,3396.1,3.2078]
[1735634080557,3.2078,3397.4,3395.8,0.4766]
[1735634080558,3.2078,3397.0,3396.2,3.2078]
[1735634080763,3.50273,3397.0,3396.4,0.29497]
[1735634080952,3.2078,3397.0,3395.6,3.2078]
[1735634081257,3.2078,3397.0,3396.0,3.2078]
[1735634081451,3.50273,3397.0,3396.4,0.29498]
[1735634081652,3.2078,3397.0,3396.0,3.2078]
[1735634081847,3.2078,3397.0,3395.4,0.73765]
[1735634081848,3.2078,3397.0,3396.4,3.2078]
[1735634082053,3.2078,3397.0,3396.7,0.29495]
[1735634082355,3.2078,3397.0,3395.5,1.658]
[1735634082356,3.2078,3397.0,3395.4,3.2078]
[1735634082556,3.2078,3397.0,3395.4,8.2078]
[1735634082852,3.2078,3397.0,3395.8,3.2078]
[1735634083054,3.2078,3397.0,3395.5,0.88078142]
[1735634083055,3.2078,3396.6,3395.5,0.46111588]
[1735634083257,3.2078,3396.6,3395.6,0.29505]
[1735634083258,0.295,3396.2,3395.6,0.29505]
[1735634083452,3.2078,3396.6,3395.6,0.29505]
[1735634083758,8.2078,3396.6,3395.2,3.6651]
[1735634084052,0.29501,3396.1,3395.4,0.29506]
[1735634084254,3.2078,3396.2,3395.2,3.2078]
[1735634084454,1.659,3396.5,3395.2,3.2078]
[1735634084455,0.4698,3396.4,3395.2,3.2078]
[1735634084654,0.9618,3396.1,3395.2,3.2078]
[1735634085254,5.9618,3396.1,3395.2,3.2078]
[1735634085561,0.29505,3395.6,3394.9,0.2951]
[1735634085755,5.9618,3396.1,3394.3,0.29516]
[1735634085756,3.2078,3395.0,3394.3,0.29516]
[1735634085952,3.2078,3395.0,3394.1,3.2078]
[1735634086256,9.17587341,3396.1,3394.1,3.2078]
[1735634086257,0.29509,3395.2,3394.4,0.29515]
[1735634086462,0.4894,3395.4,3394.9,3.2078]
[1735634086758,0.4894,3395.4,3394.9,3.5029]
[1735634086961,3.6972,3395.4,3394.5,3.2078]
[1735634087150,0.4894,3395.4,3394.6,0.29513]
[1735634087351,0.4894,3395.4,3394.5,3.2078]
[1735634087547,3.6972,3395.4,3394.5,3.2078]
[1735634087857,3.50282,3395.9,3395.1,0.29508]
[1735634088152,3.50282,3395.9,3394.0,3.21407341]
[1735634088153,3.2078,3395.9,3395.0,3.2078]
[1735634088554,0.29503,3395.8,3395.0,3.2078]
[1735634088752,0.29503,3395.8,3394.7,0.29512]
[1735634088753,0.29509,3395.2,3394.4,3.2078]
[1735634089057,3.2078,3395.5,3394.4,3.2078]
[1735634089253,0.2951,3395.0,3394.4,3.2078]
[1735634089454,3.2078,3395.1,3394.0,3.2078]
[1735634089649,0.4645,3395.0,3394.0,3.2078]
[1735634089857,3.2078,3394.7,3394.0,3.2078]
[1735634090149,1.3799,3395.0,3393.5,3.2078]
[1735634090150,0.29517,3394.2,3393.5,3.2078]
[1735634090347,0.29518,3394.1,3393.5,3.2078]
[1735634090751,3.50297,3394.3,3393.6,0.29522]
[1735634090950,3.2078,3394.3,3393.5,3.2078]
[1735634091159,0.2952,3393.9,3393.5,3.2078]
[1735634091660,0.29517,3394.2,3393.5,3.50302]
[1735634091865,0.2952,3393.9,3393.5,3.2078]
[1735634092053,0.29519,3394.0,3393.5,3.50303]
[1735634092255,0.4881,3394.1,3393.5,3.2078]
[1735634092856,0.4881,3394.1,3393.7,0.29521]
[1735634093161,0.4881,3394.1,3393.7,0.2952]
[1735634093367,0.4881,3394.1,3393.7,0.29521]
[1735634093659,3.2078,3394.3,3393.6,0.29522]
[1735634093859,3.2078,3394.3,3393.5,3.2078]
[1735634094260,3.2078,3394.3,3394.2,0.29517]
[1735634095264,0.78321,3394.9,3394.1,3.2078]
[1735634095265,3.99101,3394.9,3394.1,3.2078]
[1735634095464,3.6959,3394.9,3394.1,3.2078]
[1735634096161,8.6959,3394.9,3394.1,3.2078]
[1735634096362,0.29514,3394.5,3394.1,3.2078]
[1735634096564,3.6959,3394.9,3394.1,3.2078]
[1735634096763,0.29512,3394.7,3394.2,0.29516]
[1735634096961,0.29514,3394.5,3394.1,3.2078]
[1735634097258,8.6959,3394.9,3394.1,3.2078]
[1735634097463,10.3559,3394.9,3394.1,3.2078]
[1735634097664,0.29515,3394.5,3394.3,0.00551486]
[1735634098063,5.3559,3394.9,3394.3,0.00551486]
[1735634098554,0.29512,3394.7,3394.3,0.00551486]
[1735634098755,5.3559,3394.9,3394.3,0.00551486]
[1735634098959,0.29515,3394.4,3394.3,0.00551486]
[1735634099156,3.22290045,3394.8,3394.1,3.2078]